bitfinex/quotes_SOLUSD_20251231
["timestamp","ask_amount","ask_price","bid_price","bid_amount"]
[1767158688254,5.35582409,125.66,125.64,0.66]
[1767158689576,4.58760063,125.67,125.64,0.66]
[1767158689777,0.66,125.67,125.64,0.66]
[1767158689966,4.58760063,125.67,125.64,0.66]
[1767158692072,4.58760063,125.67,125.65,0.69]
[1767158692483,3.17149087,125.67,125.65,0.69]
[1767158694276,2.51149087,125.67,125.65,0.69]
[1767158694487,3.37149087,125.68,125.65,0.66001205]
[1767158694859,2.71149087,125.68,125.64,10.47060182]
[1767158695074,2.71149087,125.68,125.63,14.54]
[1767158695075,0.66,125.66,125.63,22.49957628]
[1767158696082,0.66,125.66,125.63,7.95957628]
[1767158696580,0.66,125.66,125.64,7.95920062]
[1767158697373,0.66,125.66,125.64,0.69]
[1767158697782,3.17149087,125.66,125.64,0.69]
[1767158700173,2.51149087,125.66,125.64,0.69]
[1767158700377,2.51149087,125.66,125.64,8.64923654]
[1767158701280,3.17149087,125.67,125.64,8.64923654]
[1767158706974,3.17149087,125.66,125.64,0.69]
[1767158707271,0.66,125.67,125.64,8.64899849]
[1767158707472,0.66,125.67,125.65,0.66]
[1767158710589,0.2,125.68,125.66,0.66]
[1767158719594,0.2,125.68,125.66,8.6177375]
[1767158719787,0.2,125.69,125.67,0.69]
[1767158720996,0.2,125.69,125.68,0.69]
[1767158724784,0.2,125.71,125.69,0.3]
[1767158725084,0.2,125.71,125.7,0.3]
[1767158727706,0.2,125.71,125.69,2.81149087]
[1767158728601,0.2,125.71,125.69,0.3]
[1767158730906,0.2,125.71,125.69,10.76732424]
[1767158731302,0.9,125.71,125.69,2.81149087]
[1767158733505,0.9,125.71,125.69,0.3]
[1767158734679,0.9,125.71,125.69,0.27]
[1767158737993,0.7,125.7,125.67,8.22712742]
[1767158738197,0.7,125.7,125.67,25.27861829]
[1767158747214,0.7,125.7,125.67,22.49712742]
[1767158747794,0.7,125.7,125.67,22.76712742]
[1767158748015,0.7,125.7,125.67,8.22712742]
[1767158748395,0.7,125.7,125.67,10.73861829]
[1767158749101,0.9,125.71,125.68,2.78149087]
[1767158749311,0.9,125.71,125.68,10.73805552]
[1767158749714,0.2,125.71,125.69,0.27]
[1767158749907,0.9,125.71,125.69,0.27]
[1767158750130,0.2,125.71,125.7,2.51149087]
[1767158752521,0.2,125.71,125.7,3.92003908]
[1767158752698,0.2,125.71,125.69,12.14557614]
[1767158760511,0.2,125.71,125.7,3.92003908]
[1767158761230,0.2,125.71,125.69,12.14557614]
[1767158765821,0.2,125.71,125.69,8.22553706]
[1767158766141,0.2,125.71,125.69,12.14557614]
[1767158772435,0.72,125.7,125.68,7.95655491]
[1767158772651,0.72,125.7,125.67,22.49719364]
[1767158773323,0.72,125.7,125.67,26.68723272]
[1767158774222,0.72,125.7,125.68,7.95667283]
[1767158774628,0.72,125.7,125.67,26.68717694]
[1767158778035,0.72,125.7,125.67,22.76713786]
[1767158778243,0.72,125.7,125.67,26.68717694]
[1767158785546,0.88,125.71,125.68,4.19003908]
[1767158786858,0.88,125.71,125.68,12.14622416]
[1767158787556,0.2,125.71,125.68,12.14622416]
[1767158787758,0.68,125.7,125.68,12.14622416]
[1767158788350,0.2,125.71,125.68,12.14622416]
[1767158788550,0.2,125.71,125.69,0.27]
[1767158789352,0.88,125.71,125.69,0.27]
[1767158791152,0.2,125.71,125.69,0.27]
[1767158792152,0.2,125.71,125.68,11.87622416]
[1767158792153,0.88,125.71,125.68,8.22618508]
[1767158792339,0.88,125.71,125.69,11.87609073]
[1767158792648,0.2,125.71,125.69,12.14609073]
[1767158810082,0.89,125.71,125.69,12.14609073]
[1767158810385,0.89,125.71,125.69,11.87609073]
[1767158810680,0.89,125.71,125.69,7.95605165]
[1767158811668,0.89,125.71,125.68,8.22639435]
[1767158811862,0.69,125.7,125.68,26.41643343]
[1767158814484,0.69,125.7,125.68,25.00607981]
[1767158814855,2.50968546,125.7,125.68,14.54]
[1767158815159,0.69,125.69,125.68,14.54]
[1767158816554,0.69,125.69,125.66,25.27716498]
[1767158816986,0.69,125.69,125.67,7.95726049]
[1767158817672,0.69,125.69,125.67,10.46694595]
[1767158822070,0.69,125.69,125.67,7.95726049]
[1767158830979,0.69,125.69,125.67,8.22726049]
[1767158831187,0.69,125.69,125.67,10.73694595]
[1767158831188,0.66047316,125.69,125.67,10.73694595]
[1767158832887,0.63000001,125.69,125.67,10.73694595]
[1767158834680,2.50968546,125.68,125.61,8.94569076]
[1767158834879,0.69,125.64,125.61,8.29056256]
[1767158835191,3.19968546,125.65,125.62,0.33]
[1767158835673,0.69,125.64,125.62,0.33]
[1767158846583,0.69,125.64,125.61,8.29056256]
[1767158846792,3.19968546,125.64,125.61,8.29056256]
[1767158847586,0.69,125.64,125.61,8.29056256]
[1767158847772,0.72,125.66,125.63,0.33]
[1767158848176,0.72,125.65,125.62,8.29050674]
[1767158849295,0.72,125.62,125.59,8.29211575]
[1767158849477,0.72,125.62,125.59,0.33]
[1767158849478,3.16968546,125.62,125.59,0.33]
[1767158849673,2.50968546,125.62,125.58,22.89291448]
[1767158850294,2.50968546,125.62,125.58,22.50291448]
[1767158850606,2.50968546,125.62,125.59,0.39]
[1767158851399,0.72,125.61,125.59,0.39]
[1767158852897,0.72,125.61,125.59,8.35235896]
[1767158866894,0.72,125.61,125.59,7.96235896]
[1767158881024,7.95809858,125.66,125.59,7.96235896]
[1767158881199,3.92751838,125.64,125.59,12.27987734]
[1767158881404,0.69,125.62,125.59,8.35235896]
[1767158881805,0.69,125.62,125.59,7.96235896]
[1767158881999,7.95809858,125.66,125.59,11.88987734]
[1767158882205,0.69,125.63,125.6,0.39]
[1767158884425,0.69,125.63,125.6,8.35143619]
[1767158885417,0.68,125.65,125.62,0.39]
[1767158886128,0.68,125.65,125.61,18.85751838]
[1767158886830,0.68,125.65,125.62,11.88803422]
[1767158887608,0.68,125.65,125.63,3.92751838]
[1767158887811,0.68,125.65,125.63,4.31751838]
[1767158888017,0.68,125.65,125.63,0.39]
[1767158888211,0.68,125.65,125.62,11.88803422]
[1767158888410,0.68,125.65,125.62,12.27803422]
[1767158892032,0.68,125.65,125.62,8.35051584]
[1767158892233,0.68,125.65,125.62,12.27803422]
[1767158899544,0.68,125.65,125.62,8.35051584]
[1767158899747,0.68,125.65,125.62,12.27803422]
[1767158904730,0.68,125.65,125.63,11.88707269]
[1767158907652,0.68,125.65,125.63,7.95955431]
[1767158913755,3.92751838,125.67,125.56,53.39119282]
[1767158913756,3.92751838,125.64,125.59,19.90532303]
[1767158913938,0.69,125.62,125.59,22.50221905]
[1767158914137,0.6607585,125.62,125.59,22.50221905]
[1767158914535,0.6607585,125.62,125.59,7.96221905]
[1767158914736,0.6607585,125.62,125.59,22.50221905]
[1767158915250,0.63173669,125.62,125.59,22.50221905]
[1767158918636,0.6014249,125.62,125.59,22.50221905]
[1767158919556,0.57207637,125.62,125.59,22.50221905]
[1767158926266,0.57207637,125.62,125.59,26.42973743]
[1767158929176,6.70179027,125.68,125.61,0.5]
[1767158929361,0.71,125.65,125.62,18.46751838]
[1767158934295,0.71,125.65,125.63,3.92751838]
[1767158936598,0.71,125.65,125.63,2.51126119]
[1767158938775,0.71,125.65,125.62,25.01138501]
[1767158939684,0.71,125.65,125.63,3.01126119]
[1767158940785,0.71,125.65,125.63,10.97082852]
[1767158943802,0.2,125.71,125.63,36.20941118]
[1767158944000,0.71,125.7,125.66,0.5]
[1767158944170,0.2,125.71,125.67,15.19]
[1767158944372,0.2,125.71,125.67,17.70126119]
[1767158944591,0.2,125.71,125.67,15.19]
[1767158944805,0.2,125.71,125.67,14.54]
[1767158944986,0.2,125.71,125.68,2.51126119]
[1767158946278,0.7,125.7,125.68,2.51126119]
[1767158947006,0.7,125.7,125.67,25.65830326]
[1767158947380,0.7,125.7,125.67,23.14704207]
[1767158947579,0.7,125.7,125.67,25.65830326]
[1767158948184,0.7,125.69,125.65,11.18928488]
[1767158948386,0.7,125.69,125.66,17.05126119]
[1767158948692,0.7,125.69,125.66,17.77126119]
[1767158948894,0.7,125.69,125.66,15.26]
[1767158949279,0.7,125.69,125.66,23.217799]
[1767158949480,2.71126119,125.71,125.68,0.72]
[1767158949481,0.7,125.7,125.68,0.72]
[1767158949707,0.7,125.7,125.67,3.23126119]
[1767158950809,0.7,125.7,125.67,11.18839891]
[1767158951523,0.7,125.7,125.67,8.67713772]
[1767158951699,0.7,125.7,125.67,11.18839891]
[1767158954309,0.7,125.7,125.67,8.67713772]
[1767158961300,0.7,125.7,125.68,0.72]
[1767158962206,0.91,125.71,125.68,8.6767123]
[1767158963487,0.91,125.71,125.68,0.72]
[1767158964509,0.71,125.7,125.68,0.72]
[1767158965410,0.71,125.7,125.67,7.95710053]
[1767158965606,0.71,125.7,125.67,8.67710053]
[1767158965811,0.67932525,125.7,125.67,8.67710053]
[1767158966611,0.65,125.7,125.67,8.67710053]
[1767158971709,0.61953507,125.7,125.67,8.67710053]
[1767158972107,0.61953507,125.7,125.67,11.18836172]
[1767158972630,0.58896876,125.7,125.68,0.72]
[1767158977798,0.58896876,125.7,125.67,8.67710053]
[1767158991059,0.7,125.69,125.66,8.65795485]
[1767158991258,3.21126119,125.69,125.66,23.19795485]
[1767158991430,0.7,125.68,125.66,23.19795485]
[1767158993062,0.7,125.68,125.66,22.49795485]
[1767158993637,0.7,125.68,125.66,23.19795485]
[1767158997873,0.7,125.7,125.66,23.19795485]
[1767158998051,0.2,125.71,125.69,0.7]
[1767158998373,0.9,125.71,125.69,0.7]
[1767158999738,0.9,125.71,125.68,12.57734728]
[1767159000773,0.9,125.71,125.69,15.24]
[1767159000976,0.7,125.72,125.69,26.41664465]
[1767159001277,0.7,125.72,125.7,15.24]
[1767159003173,0.7,125.72,125.7,23.1953325]
[1767159004550,0.7,125.72,125.7,27.1162547]
[1767159004854,0.7,125.72,125.7,23.1953325]
[1767159006769,0.7,125.72,125.69,23.21576552]
[1767159008472,0.7,125.72,125.69,15.26]
[1767159008671,0.7,125.72,125.65,0.72]
[1767159008883,4.6209222,125.69,125.66,15.26]
[1767159009345,0.7,125.69,125.66,23.21780753]
[1767159012266,0.66948759,125.69,125.66,23.21780753]
[1767159013172,3.9209222,125.69,125.66,14.54]
[1767159014382,0.7,125.68,125.66,14.54]
[1767159018680,0.66914153,125.68,125.66,14.54]
[1767159019996,3.9209222,125.71,125.67,0.67]
[1767159020799,0.68,125.7,125.67,0.67]
[1767159021695,0.68,125.69,125.67,0.67]
[1767159025292,7.95444323,125.72,125.67,0.67]
[1767159025591,0.68,125.7,125.67,0.67]
[1767159030890,0.68,125.69,125.67,0.67]
[1767159036102,0.68,125.68,125.66,14.54]
[1767159036275,0.64969187,125.68,125.66,14.54]
[1767159037378,7.95509488,125.71,125.66,15.21]
[1767159037578,3.9209222,125.7,125.66,15.21]
[1767159038196,0.68,125.69,125.66,15.21]
[1767159050414,4.6009222,125.69,125.66,15.21]
[1767159051215,3.9209222,125.69,125.66,15.21]
[1767159051512,0.71,125.68,125.66,14.54]
[1767159051812,0.71,125.66,125.64,22.49896782]
[1767159052016,0.68030813,125.66,125.64,22.49896782]
[1767159052203,0.68030813,125.66,125.64,23.18896782]
[1767159052511,0.68030813,125.66,125.64,15.23]
[1767159053104,4.60123033,125.66,125.64,14.54]
[1767159053304,3.9209222,125.65,125.62,7.96024348]
[1767159053816,3.9209222,125.65,125.62,8.65024348]
[1767159053994,4.6309222,125.65,125.62,8.65024348]
[1767159054901,0.71,125.65,125.62,12.57116568]
[1767159055894,0.71,125.65,125.62,8.65024348]
[1767159056193,0.71,125.67,125.64,4.6109222]
[1767159057788,0.71,125.69,125.65,0.69]
[1767159057993,0.71,125.68,125.65,0.69]
[1767159065918,0.67,125.71,125.67,3.17117598]
[1767159066806,0.67,125.71,125.68,3.17117598]
[1767159073327,0.67,125.71,125.68,2.51117598]
[1767159073719,0.67,125.71,125.68,3.17117598]
[1767159076746,0.67,125.71,125.68,0.66]
[1767159079236,0.67,125.71,125.68,3.17117598]
[1767159080250,0.67,125.71,125.68,0.66]
[1767159080532,0.67,125.71,125.68,3.17117598]
[1767159080738,0.67,125.71,125.66,3.17117598]
[1767159080739,0.71,125.7,125.66,3.17117598]
[1767159080917,0.71,125.69,125.66,17.71117598]
[1767159081718,0.71,125.68,125.66,14.54]
[1767159082234,0.71,125.68,125.65,0.66]
[1767159082748,0.71,125.68,125.66,0.66]
[1767159088623,0.71,125.69,125.66,0.66]
[1767159089948,0.71,125.69,125.66,3.17117598]
[1767159091445,2.51117598,125.72,125.67,2.51117598]
[1767159091744,0.71,125.71,125.69,0.66]
[1767159091943,0.71,125.71,125.68,3.17117598]
[1767159094742,0.71,125.71,125.69,2.51117598]
[1767159096644,7.95365333,125.73,125.7,2.51117598]
[1767159096645,0.71,125.73,125.7,2.51117598]
[1767159098938,0.71,125.73,125.7,2.48148978]
[1767159102441,0.71,125.73,125.7,3.14148978]
[1767159103944,0.91,125.75,125.73,0.66]
[1767159104146,0.91,125.75,125.73,0.63020489]
[1767159104345,0.91,125.75,125.73,3.14138087]
[1767159105039,0.2,125.75,125.74,2.51117598]
[1767159105240,0.2,125.75,125.73,3.14138087]
[1767159107557,0.2,125.75,125.74,2.51117598]
[1767159107751,0.2,125.77,125.74,2.51117598]
[1767159107950,0.2,125.77,125.73,3.19117598]
[1767159108351,0.2,125.77,125.74,0.68]
[1767159108966,0.2,125.77,125.73,2.51117598]
[1767159109173,10.66222911,125.77,125.73,3.19117598]
[1767159109573,10.66222911,125.77,125.73,2.51117598]
[1767159109742,0.7,125.76,125.72,0.68]
[1767159109949,0.7,125.76,125.72,3.19117598]
[1767159111476,0.7,125.76,125.73,0.68]
[1767159115171,0.9,125.77,125.74,3.19117598]
[1767159115759,0.2,125.77,125.75,0.68]
[1767159116880,0.2,125.77,125.75,3.19117598]
[1767159117678,0.2,125.77,125.75,0.68]
[1767159120685,0.9,125.77,125.75,0.68]
[1767159125673,0.9,125.77,125.73,0.66]
[1767159125871,0.9,125.77,125.74,0.66]
[1767159130781,0.66,125.76,125.72,4.57738184]
[1767159130988,0.66,125.75,125.72,4.57738184]
[1767159131710,8.15105851,125.77,125.71,15.2]
[1767159131711,0.66,125.74,125.71,15.2]
[1767159137283,0.66,125.74,125.71,4.57738184]
[1767159138286,0.7,125.73,125.71,0.66]
[1767159142391,4.61738184,125.75,125.71,3.91738184]
[1767159142600,0.7,125.75,125.72,0.68]
[1767159148598,11.86916933,125.76,125.72,0.68]
[1767159148599,12.56916933,125.76,125.73,0.68]
[1767159148806,0.7,125.75,125.73,0.68]
[1767159149103,0.7,125.75,125.72,4.59738184]
[1767159152711,0.7,125.75,125.72,0.68]
[1767159155107,0.62028646,125.75,125.72,0.68]
[1767159156110,4.5376683,125.75,125.72,0.68]
[1767159156715,3.91738184,125.75,125.71,0.68]
[1767159156885,3.91738184,125.75,125.72,0.68]
[1767159157082,4.60738184,125.75,125.72,0.68]
[1767159158207,3.91738184,125.75,125.72,0.68]
[1767159158413,3.91738184,125.75,125.7,7.95505526]
[1767159158414,0.69,125.74,125.7,3.91738184]
[1767159158713,0.69,125.74,125.71,0.68]
[1767159165315,0.69,125.75,125.72,0.68]
[1767159165512,4.60738184,125.75,125.72,0.68]
[1767159166415,0.68,125.74,125.71,0.65]
[1767159167389,0.68,125.74,125.71,4.56738184]
[1767159172518,0.68,125.74,125.71,0.65]
[1767159182120,3.1889824,125.74,125.71,0.65]
[1767159183317,0.68,125.74,125.71,0.65]
[1767159188629,3.1889824,125.74,125.71,0.65]
[1767159190040,0.68,125.74,125.71,0.65]
[1767159198229,3.1889824,125.74,125.71,0.65]
[1767159198932,11.15193123,125.74,125.71,0.65]
[1767159201933,0.69,125.72,125.69,0.71]
[1767159202127,3.1989824,125.7,125.67,0.71]
[1767159202429,2.5089824,125.69,125.67,0.71]
[1767159202629,3.1989824,125.7,125.67,0.71]
[1767159206139,0.69,125.7,125.67,0.71]
[1767159206442,0.69,125.72,125.69,0.71]
[1767159211243,3.1989824,125.72,125.69,0.71]
[1767159212926,11.15317867,125.72,125.69,0.71]
[1767159213139,3.1989824,125.71,125.68,0.71]
[1767159214422,0.69,125.7,125.66,3.2189824]
[1767159214628,3.1989824,125.7,125.67,0.71]
[1767159220927,3.1989824,125.68,125.65,0.71]
[1767159222751,2.5089824,125.67,125.65,0.71]
[1767159223453,11.15577807,125.68,125.65,0.71]
[1767159223950,3.1989824,125.68,125.65,0.71]
[1767159236447,2.5089824,125.67,125.65,0.71]
[1767159236646,3.1689824,125.67,125.63,0.66]
[1767159240171,2.5089824,125.66,125.63,0.66]
[1767159240359,3.1689824,125.66,125.63,0.66]
[1767159240684,2.5089824,125.66,125.63,0.66]
[1767159241188,3.1689824,125.66,125.63,0.66]
[1767159241367,3.1689824,125.65,125.62,0.69]
[1767159242583,4.58640617,125.65,125.62,0.69]
[1767159243768,3.92640617,125.64,125.61,14.54]
[1767159244166,3.92640617,125.64,125.62,0.69]
[1767159246591,8.61749672,125.67,125.62,0.69]
[1767159246761,3.92640617,125.66,125.62,0.69]
[1767159247679,4.58640617,125.66,125.62,0.69]
[1767159257792,4.58640617,125.66,125.62,3.92640617]
[1767159257972,4.58640617,125.66,125.63,0.7]
[1767159258691,0.66,125.66,125.63,0.7]
[1767159258874,8.64749672,125.67,125.63,0.7]
[1767159259186,12.57390289,125.67,125.63,0.7]
[1767159259784,12.57390289,125.67,125.64,0.7]
[1767159260379,0.69,125.66,125.64,0.7]
[1767159263084,4.61640617,125.66,125.64,0.7]
[1767159263495,4.61640617,125.66,125.63,0.7]
[1767159264087,4.61640617,125.66,125.61,22.50091923]
[1767159264088,4.61640617,125.64,125.61,15.24]
[1767159264384,4.58631176,125.64,125.61,15.24]
[1767159265680,0.65990559,125.64,125.61,15.24]
[1767159267369,0.65990559,125.64,125.61,0.7]
[1767159284588,4.58631176,125.64,125.61,0.7]
[1767159285005,0.66,125.63,125.6,8.66174909]
[1767159286626,0.66,125.62,125.59,0.89]
[1767159286829,4.58640617,125.62,125.59,0.89]
[1767159286996,0.66,125.61,125.59,0.89]
[1767159287321,3.92640617,125.63,125.59,0.89]
[1767159287612,0.66,125.62,125.59,0.89]
[1767159289221,4.58640617,125.62,125.59,0.89]
[1767159290319,3.92640617,125.62,125.59,0.89]
[1767159290498,0.66,125.61,125.59,0.89]
[1767159291218,4.58640617,125.62,125.59,0.89]
[1767159294218,0.66,125.62,125.59,0.89]
[1767159299226,0.66,125.62,125.59,0.2]
[1767159299529,0.66,125.62,125.6,0.69]
[1767159301633,4.58640617,125.62,125.6,0.69]
[1767159301847,12.54694967,125.62,125.59,0.2]
[1767159302007,0.66,125.61,125.59,0.2]
[1767159302427,0.66,125.59,125.58,0.2]
[1767159302627,4.58640617,125.59,125.58,0.2]
[1767159303326,3.92640617,125.59,125.56,0.1]
[1767159303536,3.92640617,125.58,125.56,0.1]
[1767159303837,3.92640617,125.58,125.54,14.64]
[1767159303838,0.66,125.56,125.54,0.1]
[1767159304025,4.58640617,125.55,125.54,0.1]
[1767159304604,3.17685749,125.55,125.53,0.1]
[1767159305133,0.66,125.57,125.53,0.78]
[1767159305346,0.66,125.55,125.53,0.78]
[1767159306320,3.17685749,125.55,125.53,0.78]
[1767159309738,3.17685749,125.55,125.53,0.1]
[1767159316863,0.66,125.55,125.53,0.1]
[1767159317049,3.17685749,125.55,125.53,0.1]
[1767159322154,0.66,125.55,125.53,0.1]
[1767159322752,22.50341596,125.58,125.53,0.1]
[1767159322930,3.17685749,125.57,125.54,0.66]
[1767159327349,0.66,125.57,125.54,0.66]
[1767159327554,3.17685749,125.57,125.54,0.66]
[1767159330856,2.51685749,125.57,125.54,0.66]
[1767159331241,3.17685749,125.57,125.54,0.66]
[1767159331442,2.51685749,125.56,125.54,0.66]
[1767159331654,3.17685749,125.56,125.53,0.76]
[1767159332539,3.17685749,125.55,125.53,0.76]
[1767159332747,3.17685749,125.55,125.52,0.76]
[1767159332748,2.51685749,125.54,125.52,0.76]
[1767159333140,3.17685749,125.55,125.52,0.76]
[1767159333352,3.17685749,125.56,125.52,0.76]
[1767159333858,11.1408067,125.57,125.53,0.66]
[1767159334657,0.66,125.58,125.54,0.66]
[1767159334856,3.17685749,125.58,125.54,0.66]
[1767159336069,0.66,125.57,125.54,0.66]
[1767159337047,3.17685749,125.58,125.54,0.66]
[1767159338467,0.66,125.58,125.54,0.66]
[1767159338665,8.35013837,125.6,125.54,0.66]
[1767159338666,2.51685749,125.6,125.57,0.66]
[1767159338964,2.51685749,125.6,125.57,0.63061921]
[1767159339267,3.17685749,125.61,125.57,0.63061921]
[1767159339643,0.69,125.6,125.57,0.63061921]
[1767159340061,0.69,125.6,125.57,0.60061921]
[1767159340562,10.47824328,125.61,125.57,0.60061921]
[1767159340563,8.66138579,125.61,125.57,2.51685749]
[1767159341558,125.31013837,125.64,125.57,10.48044179]
[1767159341756,3.21685749,125.62,125.57,10.48044179]
[1767159342060,3.21685749,125.62,125.58,2.19e-06]
[1767159342373,0.7,125.61,125.58,2.19e-06]
[1767159343064,0.7,125.63,125.59,2.51685749]
[1767159343875,3.21685749,125.63,125.59,2.51685749]
[1767159344045,0.7,125.62,125.59,3.17685749]
[1767159346774,0.68,125.63,125.6,0.69]
[1767159347459,0.68,125.63,125.6,0.66]
[1767159356379,0.68,125.63,125.61,0.69]
[1767159358462,15.22,125.65,125.62,0.69]
[1767159358663,0.68,125.64,125.62,0.69]
[1767159358870,0.68,125.64,125.61,0.69]
[1767159359265,0.68,125.63,125.59,2.51685749]
[1767159359585,0.68,125.62,125.6,0.69]
[1767159360182,0.68,125.62,125.58,10.47972574]
[1767159360359,3.19685749,125.62,125.59,0.69]
[1767159360856,0.68,125.62,125.59,0.69]
[1767159363383,2.51685749,125.62,125.58,0.72]
[1767159363561,0.67,125.61,125.58,0.72]
[1767159363762,2.51685749,125.61,125.58,0.72]
[1767159364091,0.67,125.58,125.56,0.72]
[1767159364786,2.51685749,125.6,125.56,0.72]
[1767159364994,17.72685749,125.61,125.58,0.72]
[1767159365162,15.21,125.61,125.58,0.72]
[1767159367177,0.67,125.61,125.58,0.72]
[1767159370583,8.630627,125.62,125.59,0.72]
[1767159370797,12.55896651,125.62,125.59,0.72]
[1767159371097,0.67,125.61,125.59,0.72]
[1767159371883,0.67,125.61,125.58,0.72]
[1767159375483,0.67,125.63,125.6,3.92833951]
[1767159375793,0.67,125.63,125.6,0.72]
[1767159379186,0.67,125.63,125.6,4.64833951]
[1767159382014,0.7,125.62,125.55,34.45111769]
[1767159382216,4.62833951,125.61,125.58,0.66]
[1767159382394,0.7,125.61,125.58,0.66]
[1767159382704,0.7,125.61,125.58,4.58833951]
[1767159382906,0.7,125.61,125.58,3.92833951]
[1767159383123,0.7,125.62,125.59,4.58833951]
[1767159384625,0.7,125.62,125.6,0.66]
[1767159390208,8.66002616,125.63,125.6,0.66]
[1767159393410,7.96002616,125.63,125.6,0.66]
[1767159393606,12.58786969,125.64,125.6,0.66]
[1767159396730,0.7,125.63,125.6,4.58833951]
[1767159398004,0.7,125.63,125.6,0.66]
[1767159398212,0.7,125.63,125.6,4.58833951]
[1767159403421,0.7,125.63,125.6,0.66]
[1767159403719,4.62833951,125.63,125.6,0.66]
[1767159404615,0.7,125.62,125.59,0.66]
[1767159412527,0.7,125.62,125.6,0.69]
[1767159421628,8.66073172,125.62,125.56,7.96398127]
[1767159421811,6.6473573,125.61,125.58,0.69]
[1767159422010,0.68,125.61,125.58,0.69]
[1767159422527,0.68,125.58,125.53,0.69]
[1767159422730,0.68,125.57,125.54,0.69]
[1767159422907,0.68,125.56,125.53,0.69]
[1767159423107,0.65076585,125.56,125.53,0.69]
[1767159423524,4.57910536,125.56,125.53,0.69]
[1767159424818,0.65076585,125.56,125.53,0.69]
[1767159426025,0.65076585,125.56,125.53,4.61833951]
[1767159426522,0.65076585,125.56,125.53,3.20594838]
[1767159428021,0.65076585,125.56,125.53,0.69]
[1767159431034,0.65076585,125.56,125.53,3.20594838]
[1767159432635,0.65076585,125.56,125.53,0.69]
[1767159435928,0.7,125.54,125.52,0.1]
[1767159436159,3.21594838,125.54,125.52,0.1]
[1767159436447,0.7,125.54,125.52,0.79]
[1767159481185,17.74594838,125.57,125.52,2.61594838]
[1767159481384,5.96761242,125.56,125.53,0.68]
[1767159481592,0.67,125.57,125.54,0.68]
[1767159481776,5.96783179,125.56,125.54,0.68]
[1767159482091,5.96760122,125.55,125.52,2.61594838]
[1767159482294,0.67,125.56,125.52,2.61594838]
[1767159482295,0.67,125.56,125.53,0.68]
[1767159482490,2.51594838,125.56,125.53,0.68]
[1767159482686,2.51594838,125.55,125.52,0.78]
[1767159482864,0.67,125.54,125.52,0.78]
[1767159487297,0.67,125.55,125.52,0.78]
[1767159490773,4.60199015,125.57,125.54,0.68]
[1767159490974,5.96255978,125.56,125.54,0.68]
[1767159491196,4.60199015,125.57,125.54,0.68]
[1767159491396,5.96216568,125.56,125.54,0.68]
[1767159491596,0.67,125.57,125.54,0.68]
[1767159491788,5.96217965,125.56,125.54,0.68]
[1767159492103,0.67,125.57,125.54,0.68]
[1767159492285,5.9621781,125.56,125.54,0.68]
[1767159492586,0.67,125.57,125.54,0.68]
[1767159492787,5.96183558,125.56,125.54,0.68]
[1767159492987,0.67,125.57,125.54,0.68]
[1767159493188,5.96183496,125.56,125.54,0.68]
[1767159493496,0.67,125.57,125.54,0.68]
[1767159493799,5.96153233,125.56,125.54,0.68]
[1767159493986,0.67,125.56,125.54,0.68]